Cogmind - Beta 14 @@@ ROGUE MODE // 2025.04.22 @ 19:58:28 Player: CRS Result: Destroyed by G-34 Mercenary with Small Laser Performance ------------- Evolutions (0) 0 Regions Visited (1) 200 Robots Destroyed (14) 70 Value Destroyed (363) 363 Prototype IDs (0) 0 Alien Tech Used (0) 0 Bonus (0) 0 TOTAL SCORE: 633 Bonus ------- None Cogmind --------- Core Integrity 0/250 Matter 212/300 Energy 100/100 System Corruption 0% Temperature Cool (62) Movement Core (1400) Ox27 Location -10/Materials Parts ------- > --- POWER (1) -------- (None) > --- PROPULSION (2) --- (None) > --- UTILITY (2) ------ Huge Storage Unit Targeting Computer > --- WEAPON (2) ------- Small Laser Light Assault Rifle > --- INVENTORY (25) --- Light Ion Engine Small Battery (100) Small Laser Peak State ------------ > --- POWER ------------ Light Ion Engine > --- PROPULSION ------- Aluminum Leg Aluminum Leg > --- UTILITY ---------- Tractor Beam Tractor Beam > --- WEAPON ----------- Assault Rifle Light Assault Rifle > --- INVENTORY -------- Wheel Wheel Light Assault Rifle Grenade Launcher [Rating: 7] Favorites ----------- Power Light Ion Engine Engine Light Ion Engine Propulsion Aluminum Leg Leg Aluminum Leg Wheel Wheel Utility Huge Storage Unit Device Tractor Beam Storage Huge Storage Unit Processor Targeting Computer Weapon Grenade Launcher Energy Gun Small Laser Ballistic Gun Light Assault Rifle Launcher Grenade Launcher Build | -11 -10 ------- Run | Yrd Mat Slots Evolved . | . . Power . | . . Propulsion . | . . Utility . | . . Weapon . | . . Parts Attached 15 | 5 10 Power 1 | 1 . Engine 1 | 1 . Core . | . . Reactor . | . . Propulsion 4 | 2 2 Treads . | . . Leg 2 | 2 . Wheel 2 | . 2 Hover . | . . Flight . | . . Utility 5 | . 5 Device 3 | . 3 Storage 1 | . 1 Processor 1 | . 1 Hackware . | . . Protection . | . . Artifact . | . . Weapon 5 | 2 3 Energy Gun 1 | . 1 Energy Cannon . | . . Ballistic Gun 3 | 2 1 Ballistic Cannon . | . . Launcher 1 | . 1 Special Weapon . | . . Impact Weapon . | . . Slashing Weapon . | . . Piercing Weapon . | . . Special Melee Weapon . | . . Unidentified Prototypes . | . . Parts Lost 8 | . 8 Power 1 | . 1 Propulsion 2 | . 2 Utility 2 | . 2 Weapon 3 | . 3 Highest Loss Streak 6 | . 6 To Critical Strikes . | . . Average Slot Usage (%) 64 | . 64 Engine 5 | . 5 Leg 5 | . 5 Wheel 5 | . 5 Device 11 | . 11 Storage 11 | . 11 Energy Gun 5 | . 5 Ballistic Gun 12 | . 12 Launcher 7 | . 7 Peak Build Rating 7 | 5 7 Average Rating 4 | 3 4 On Entrance 2 | . 5 Naked Turns . | . . Heaviest Build 87 | 6 87 Greatest Support 20 | 20 20 Greatest Overweight (x) 28 | . 28 Average Overweight (x) 4 | . 5 Largest Inventory Capacity 25 | 5 25 Average Capacity 19 | 5 21 Most Carried 6 | 5 6 Average Carried 4 | 2 4 Final Capacity 25 | 5 25 Final Carried 3 | 3 3 Class Distribution -------------------- 100% | Mutant Dominant Class ---------------- Mutant | -10/Materials Resources | -11 -10 ----------- Run | Yrd Mat Matter Collected 376 | 254 122 Remotely 122 | . 122 Salvage Created 431 | 38 393 Parts 27 | . 27 Haulers Intercepted . | . . Recyclers Shooed . | . . Parts Field Recycled . | . . Retrieved Matter . | . . Parts Self-Destructed . | . . Prevented . | . . Kills | -11 -10 ------- Run | Yrd Mat Combat Hostiles Destroyed 8 | 1 7 Guns 6 | 1 5 AOE 2 | . 2 Classes Destroyed 5 | 1 4 Worker 1 | . 1 Builder 3 | . 3 Recycler 1 | . 1 Mechanic 1 | . 1 Grunt 8 | 1 7 Best Kill Streak 4 | 1 4 Combat Bots Only 3 | 1 3 Max Kills in Single Turn 4 | 1 4 Gunslinging . | . . Exploded 2 | . 2 Melee . | . . Uniques/NPCs Destroyed . | . . Combat | -11 -10 -------- Run | Yrd Mat Hostile Shots Fired 79 | 1 78 Missed 19 | 1 18 Damage Taken 873 | . 873 Core 256 | . 256 Absorbed by Shields . | . . Regen/Repaired (Parts) 24 | . 24 Core Remaining (%) 100 | 100 . Volleys Fired 39 | 1 38 Largest 2 | 2 2 Hottest 70 | 40 70 Shots Fired 73 | 2 71 Gun 69 | 2 67 Cannon . | . . Launcher 4 | . 4 Special . | . . Kinetic 60 | 2 58 Thermal 9 | . 9 Explosive 4 | . 4 Electromagnetic . | . . Robot Hit Streak 9 | 2 9 Robot Miss Streak 3 | . 3 Penetration Max . | . . Secondary Targets 1 | . 1 Max Gunslinging Chain 1 | . 1 Shots Hit Robots 51 | 2 49 Core Hits 31 | 2 29 Critical Kills . | . . Critical Parts Destroyed . | . . Critical Strikes . | . . Melee Attacks . | . . Impact . | . . Slashing . | . . Piercing . | . . Sneak Attacks . | . . Combat Hostiles . | . . Follow-up Attacks . | . . Damage Inflicted 1028 | 17 1011 Guns 470 | 17 453 Cannons . | . . Explosions 558 | . 558 Melee . | . . Ramming . | . . Kinetic 427 | 17 410 Thermal 321 | . 321 Explosive 280 | . 280 Electromagnetic . | . . Impact . | . . Slashing . | . . Piercing . | . . Highest Corruption . | . . Average Corruption . | . . Corruption Purged . | . . Corruption Blocked . | . . Overload Shots . | . . Overflow Damage 82 | . 82 Projectiles . | . . Explosions 82 | . 82 Melee . | . . Knockbacks . | . . Impact . | . . Kinetic . | . . Secondary . | . . Self-Inflicted Damage 65 | . 65 Shots 3 | . 3 Rammed . | . . Targets Rammed . | . . Kicked . | . . Crushed . | . . Highest Temperature 81 | . 81 Average Temperature 16 | . 16 Received Heat Transfer 504 | . 504 Siege Activations . | . . Robots Corrupted . | . . Combat Hostiles . | . . Parts Fried . | . . Impact Corruptions . | . . Robots Melted . | . . Combat Hostiles . | . . Parts Melted . | . . Heat Transferred 300 | . 300 Parts Sabotaged . | . . Parts Stolen . | . . Parts Stripped . | . . Power Chain Reactions . | . . Alert | -11 -10 ------- Run | Yrd Mat Peak Influence 227 | 20 227 Initial 13 | . 13 Average 74 | 1 83 Maximum Alert Level 1 | . 1 Low Security (%) 88 | 100 86 Level 1 11 | . 13 Level 2 . | . . Level 3 . | . . Level 4 . | . . Level 5 . | . . High Security . | . . Max Security . | . . Squads Dispatched 1 | . 1 Investigation 1 | . 1 Extermination . | . . Reinforcement . | . . Assault . | . . Garrison . | . . Intercept . | . . Searches Triggered . | . . Construction Impeded . | . . Haulers Reinforced . | . . Active Scanning Responses . | . . Cargo Convoy Interrupts . | . . Stealth | -11 -10 --------- Run | Yrd Mat Distress Signals . | . . Communications Jammed . | . . Distress Signals . | . . Times Spotted 15 | 1 14 Peak Tracking Total 4 | 1 4 Tactical Retreats . | . . Traps | -11 -10 ------- Run | Yrd Mat Traps Triggered 1 | . 1 Indirectly . | . . Trap Hack Attempts . | . . Triggered . | . . Disarmed . | . . Reprogrammed . | . . Reused . | . . Traps Extracted . | . . Installed . | . . Triggered . | . . Machines | -11 -10 ---------- Run | Yrd Mat Machines Disabled 3 | . 3 Max in Single Turn 2 | . 2 Machines Repaired . | . . Machines Dismantled . | . . Machines Sabotaged . | . . Overloaded Fab Kills . | . . Hacking | -11 -10 --------- Run | Yrd Mat Machines Accessed 1 | . 1 Terminals . | . . Fabricators . | . . Repair Stations 1 | . 1 Recycling Units . | . . Scanalyzers . | . . Garrison Access . | . . Total Hacks 3 | . 3 Successful 3 | . 3 Failed . | . . Catastrophic . | . . Database Lockouts . | . . Manual . | . . Terminals . | . . Fabricators . | . . Repair Stations 3 | . 3 Recycling Units . | . . Scanalyzers . | . . Garrison Access . | . . Terminal Hacks . | . . Fabricator Hacks . | . . Repair Station Hacks 3 | . 3 Scan Component 1 | . 1 Repair 1 | . 1 Refit 1 | . 1 Recycling Unit Hacks . | . . Scanalyzer . | . . Garrison Access Hacks . | . . Unauthorized Hacks . | . . Terminals . | . . Fabricators . | . . Repair Stations . | . . Recycling Units . | . . Scanalyzers . | . . Garrison Access . | . . Data Cores Recovered . | . . Used . | . . Hacking Detections 1 | . 1 Full Trace Events . | . . Feedback Events . | . . Feedback Blocked . | . . Robot Schematics Acquired . | . . Robots Built . | . . Authchips . | . . Time . | . . Total Robot Build Rating . | . . Part Schematics Acquired . | . . Parts Built . | . . Authchips . | . . Time . | . . Total Part Build Rating . | . . Parts Repaired 1 | . 1 Time 26 | . 26 Parts Recycled . | . . Recycled Matter . | . . Retrieved Matter . | . . Retrieved Components . | . . Parts Scanalyzed . | . . Part Schematics Acquired . | . . Parts Damaged . | . . Bothacking | -11 -10 ------------ Run | Yrd Mat Used RIF Installer . | . . Robots Hacked . | . . Non-combat . | . . Combat . | . . Robot Hacks Applied . | . . Relay Couplers Released . | . . Fabnet Peak Effective % . | . . Robots Rewired . | . . Allies Hacked . | . . Hacks Repelled . | . . Allies | -11 -10 -------- Run | Yrd Mat Total Allies . | . . Largest Group . | . . Highest-Rated Group . | . . Highest-Rated Ally . | . . Total Orders . | . . Ally Attacks . | . . Total Damage . | . . Kills . | . . Allies Corrupted . | . . Allies Melted . | . . Intel | -11 -10 ------- Run | Yrd Mat Robot Analysis Total . | . . Derelict Logs Recovered . | . . Drone Launches . | . . Drone Recoveries . | . . Exploration | -11 -10 ------------- Run | Yrd Mat Turns Passed 757 | 86 671 Spaces Moved 243 | 74 169 Core 50 | 25 25 Treads . | . . Legs 131 | 49 82 Wheels 62 | . 62 Hover . | . . Flight . | . . Fastest Speed 50 | 50 120 Average Speed 254 | 96 324 Slowest Speed 1450 | 120 1450 Overloaded Moves . | . . Propulsion Burnouts . | . . Robots Hopped . | . . Cave-ins Triggered . | . . Exploration Rate (%) 20 | 6 35 Regions Visited 1 Branch Regions . Pre-discovered Areas . | . . Known Exits Taken . | . . Unknown Exits Taken 1 | 1 . Scrap Searched . | . . Spaces Dug . | . . Terrain Destroyed 28 | . 28 Melee . | . . Projectile . | . . AOE 28 | . 28 Terrain Rammed . | . . Walls Destroyed . | . . Machines Disabled . | . . Actions | -11 -10 --------- Run | Yrd Mat Total 315 | 87 228 Wait . | . . Move 242 | 73 169 Hop . | . . Pick Up 16 | 8 8 Fast Attach 1 | . 1 Attach 14 | 5 9 Detach 1 | . 1 Swap . | . . Drop 2 | . 2 Fire 39 | 1 38 Melee . | . . Ram . | . . Kick . | . . Crush . | . . Escape Stasis . | . . Rewire . | . . Trap . | . . Miscellaneous . | . . Route ------- -11/Scrapyard -10/Materials (discovered 1 exit: [*Mat]) History --------- Turn | Location | Event 2 | -11/Scrapyard | Met Revision 17 70 | -11/Scrapyard | Discovered new exit (range 8) 87 | -11/Scrapyard | Entered Materials 311 | -10/Materials | Discovered new exit (range 8) 314 | -10/Materials | Build established: Mutant 334 | -10/Materials | Repaired Lgt. Ion Engine 394 | -10/Materials | Lost 6 parts (1p2n1u2w) 587 | -10/Materials | Derelicts attacked the area 697 | -10/Materials | Core integrity fell below 50% 751 | -10/Materials | Core integrity fell below 20% 758 | -10/Materials | Destroyed by G-34 Mercenary with Small Laser Last Messages --------------- K-01 Serf collects debris. U-05 Engineer lays Concrete. The unstable cave ceiling collapses. U-05 Engineer lays Concrete. Acquired Targeting Computer. K-01 Serf collects debris. Acquired Sml. Battery. Destroyed Hover Unit. Atomic Centrifuge disabled. U-05 Engineer builds a Wall. U-05 Engineer lays Concrete. U-05 Engineer builds a Wall. ALERT: Derelict incursion detected, rerouting patrols to target area. U-05 Engineer lays Concrete. U-05 Engineer builds a Wall. K-01 Serf collects debris. Grenade Launcher destroyed. Tractor Beam destroyed. Critical hit (Burn: +37). Map ----- +----------------------------------------------------+ | ????# "Y" ###+###????????????????????????? | | ????# # #????????????????????????? | | ????# " #????????????????????????? | | ????# " #????????????????????????? | | ????# " #????????????????????????? | | ????# #????????????????????????? | | ????# # #????????????????????????? | | ????# #?? ?????????????????????? | | ????# # #?? ?????????????????????? | | ????# # #?? ?????????????????????? | | ????# # #?? ?????????????????????? | | ????# # #?? ?????????????????????? | | ????# # #?? ?????????????????????? | | ##### #######?? #????????????????????? | | # ##### ##???????????????????? | | # + ##??????????????????? | | # "" ## +??????????????????? | | +#######" "# # "" ## #???????????????????? | | ##"R"# # " " ## #???????????????????? | | ##"""# # ##^ ##??????????????????? | | """ ###### # """ # ##+########????????? | | """ #????# # """ + #????????? | | """ #????# # """ # ! #????????? | | #????# < # # ##### #???????????? | | #######????# # """ ##g######???????????????? | | ???????????##### """ # @ #???????????????? | | ???????????????# """ # /g #???????????? | | ???????????????# # ## #???????????? | | ???????????????######## #???????????????? | | ??????????????????????# #???????????????? | | ??????????????????????# #???????????????? | | ??????????????????????# #???????????????? | | ??????????????????????# #???????????????? | | ???????????????????????########???????????????? | | | | | | | | | | | | | | | | | | | | | | | | | | | | | | | | | +----------------------------------------------------+ Best States ------------- Heat Dissipation 25 Energy Generation 10 Energy Capacity 125 Matter Stores 300 Matter Capacity 300 Sight Range 16 Terrain Scan Density 10 Evasion (%) 55 Targeting Accuracy 5 Item Schematics ----------------- None Robot Schematics ------------------ None Fabricated ------------ Nothing Alien Tech Used ----------------- None Achievements -------------- Use The Force Challenges ------------ None Game ------ Seed BombardmentCouplerAirjet Manual? 0 Play Time 00:12:42 Cumulative 4.5 hours Start 2025.04.22 @ 19:48:27 End 2025.04.22 @ 19:58:28 Sessions 1 Manual Loads 0 Difficulty Rogue Special Mode None Game No. 10 Rogue 10 Adventurer 0 Explorer 0 Win Type - Total 0 Types 0/0/0/0/0/0/0/0/0 Lore% 1 Gallery% 9 Achievement% 11 Wizard Run 0 Options --------- Layout 1 ASCII 0 Keyboard 0 Movement Mouse Keybinds 0 Fullscreen 1 Font 24/Smallcaps Map View 50x35 Zoom Use 1% Tactical HUD 0 Map Filters NONE Filters NONE Steam 1 RUN: 1db8e18d-7257-45b1-b894-b87e84378409